{"text_format":"1","workbook":"xlsx","n_sheets":13,"sheets":["دليل الأداة","لمحة عامة","النتائج","التشريعات والأنظمة","التنظيم","السلامة","الأمن","الموظفون","التدريب","البنية التحتية","التمويل","اقتناء المعدّات","الطباعة إلى ملف PDF"],"not_rendered":{"charts":1,"images":48,"macros":1,"external_links":0,"defined_names":2,"comments":0,"pivot_tables":0},"unopened":[],"bounds":{"document_bytes":16777216,"sheet_cells":100000,"rows_first":2000,"rows_last":500,"rows_between":2000,"halvings":0,"cell_chars":16384,"cell_head_chars":4096},"cells_cut":0,"cells_raw":0,"read":"whole","date_system":"1900"}

{"sheet":"دليل الأداة","index":0,"n_rows":62,"n_cols":8,"rows_kept":62,"cut":false,"hidden":false,"merged":[[5,1,5,5],[4,1,4,4],[3,1,3,6],[48,1,48,4],[61,1,61,9]]}
[null,null,null,null,null,null,"  "]
[]
[]
[null,"https://eur-lex.europa.eu/eli/dec/2022/2275/oj/eng",null,null,null,null,null,"قرار مجلس الاتحاد الأوروبي CFSP 2022/2275"]
[null,"https://aamvs-amat.gichd.org/",null,null,null,null,null,"رابط الفريق الاستشاري المعنيّ بإدارة الذخيرة التابع لمركز جنيف الدولي لأنشطة إزالة الألغام للأغراض الإنسانيّة للحصول على معلومات حول نظام تقييم وإدارة الذخائر والأسلحة"]
[null,"Definition of Small Arms and Light Weapons (SALW)",null,null,null,null,null,"رابط مكتب الأمم المتحدة المعني بالمخدرات والجريمة بشأن الأسلحة الصغيرة والأسلحة الخفيفة (الفقرتان 4 (أ) و 4 (ب))"]
[]
[]
[]
[]
[]
[]
[]
[]
[]
[]
[]
[]
[]
[]
[]
[]
[]
[]
[]
[]
[]
[]
[]
[]
[]
[]
[]
[]
[]
[]
[]
[]
[]
[]
[]
[]
[]
[]
[]
[]
[]
[]
[null,"EU Council Decision (CFSP) 2020/979"]
[]
[]
[]
[]
[]
[]
[]
[]
[]
[]
[]
[]
[null,"https://support.microsoft.com/en-us/office/enable-or-disable-macros-in-microsoft-365-files"]

{"sheet":"لمحة عامة","index":1,"n_rows":19,"n_cols":3,"rows_kept":19,"cut":false,"hidden":false,"merged":[]}
[]
[]
[]
[]
[null,"اذكر هنا المستخدم النهائي (أي الهيئة الحكومية مثل الجيش أو الشرطة) الذي يحتاج إلى الأسلحة/الذخيرة.","المستخدم النهائي"]
[]
[null,"أدخل التاريخ الذي تم فيه إكمال تقرير التقييم الذاتي هذا بالكامل.","تاريخ إكمال التقرير"]
[]
[null,"المُقيِّم(ون): أدخل اسم (أسماء) ومنصب (مناصب) الشخص (الأشخاص) المخوَّلين إكمال هذا التقييم الذاتي.","المقيّم (المقيّمون):"]
[]
[null,"أدخل تاريخ اعتماد تقرير التقييم الذاتي هذا لإصداره للمستلمين المقصودين.","تاريخ الإصدار:"]
[]
[]
[null,"أدخل اسم ومنصب الشخص الذي سمح بإصدار تقرير التقييم الذاتي هذا إلى المستلمين المقصودين.","المسؤول عن الإصدار:"]
[]
[null,"يجب الآن تحويل التقرير المكتمل إلى صيغة PDF لطباعته و/أو حفظه. راجع علامة التبويب الموجودة في الأسفل، والملونة باللون البنفسجي، للاطلاع على إرشادات حول كيفية القيام بذلك.","التحويل إلى ملف PDF"]
[]
[null,null,"أداة نظام التحقق من إدارة الذخائر والأسلحة - الإصدار 9.1"]
[null,null," "]

{"sheet":"النتائج","index":2,"n_rows":17,"n_cols":7,"rows_kept":17,"cut":false,"hidden":false,"merged":[]}
[]
[]
[]
[null,null,null,null,null,"Functional Section","Assessed Level"]
[]
[null,null,null,null,null,"Materiel Acquisition",{"$f":"C17","v":1}]
[null,"القسم الوظيفي","المستوى المُقيّم",null,null,"Finance",{"$f":"C16","v":1}]
[null,null,null,null,null,"Infrastructure",{"$f":"C15","v":1}]
[null,"التشريعات والأنظمة",{"$f":"'التشريعات والأنظمة'!F5","v":1},null,null,"Training",{"$f":"C14","v":1}]
[null,"التنظيم",{"$f":"التنظيم!F5","v":1},null,null,"Personnel",{"$f":"C13","v":1}]
[null,"السلامة",{"$f":"السلامة!F5","v":1},null,null,"Security",{"$f":"C12","v":1}]
[null,"الأمن",{"$f":"الأمن!F5","v":1},null,null,"Safety",{"$f":"C11","v":1}]
[null,"الموظفون",{"$f":"الموظفون!F5","v":1},null,null,"Organization",{"$f":"C10","v":1}]
[null,"التدريب",{"$f":"التدريب!F5","v":1},null,null,"Legislation & Regulations",{"$f":"C9","v":1}]
[null,"البنية التحتية",{"$f":"'البنية التحتية'!F5","v":1}]
[null,"التمويل",{"$f":"التمويل!F5","v":1}]
[null,"اقتناء المعدّات",{"$f":"'اقتناء المعدّات'!F5","v":1}]

{"sheet":"التشريعات والأنظمة","index":3,"n_rows":93,"n_cols":18,"rows_kept":93,"cut":false,"hidden":false,"merged":[[14,1,14,6],[13,8,13,14],[14,8,14,14],[13,1,13,5],[15,1,15,9]]}
[]
[]
[null,"التشريعات والأنظمة"]
[]
[null,"المستوى المُقَيَّم المحسوب:",null,null,null,{"$f":"AVERAGE(R23:R93)","v":1}]
[]
[]
[]
[]
[]
[]
[]
[null,"المراجع:"]
[null,"IATG-01.40 مسرد المصطلحات والتعاريف والاختصارات",null,null,null,null,null,null,"MOSAIC-03.20 الضوابط الوطنية على النقل الدولي للأسلحة الصغيرة والأسلحة الخفيفة"]
[null,"IATG 01.50 نظام الأمم المتحدة لتصنيف أخطار المتفجّرات",null,null,null,null,null,null,"MOSAIC-03.40 الآليات الوطنية للتنسيق"]
[null,"MOSAIC-03.10 الضوابط الوطنية على تصنيع الأسلحة الصغيرة والأسلحة الخفيفة"]
[]
[]
[]
[]
[]
[]
[null,null,null,null,null,null,null,null,null,null,null,null,null,null,null,null,null,1]
[]
[]
[]
[]
[]
[]
[]
[]
[]
[]
[]
[]
[]
[]
[]
[]
[null,null,null,null,null,null,null,null,null,null,null,null,null,null,null,null,null,1]
[]
[]
[]
[]
[]
[]
[]
[]
[]
[]
[]
[]
[]
[]
[]
[null,null,null,null,null,null,null,null,null,null,null,null,null,null,null,null,null,1]
[]
[]
[]
[]
[]
[]
[]
[]
[]
[]
[]
[]
[]
[]
[]
[]
[]
[]
[]
[null,null,null,null,null,null,null,null,null,null,null,null,null,null,null,null,null,1]
[]
[]
[]
[]
[]
[]
[]
[]
[]
[]
[]
[]
[]
[]
[]
[]
[null,null,null,null,null,null,null,null,null,null,null,null,null,null,null,null,null,1]

{"sheet":"التنظيم","index":4,"n_rows":34,"n_cols":18,"rows_kept":34,"cut":false,"hidden":false,"merged":[[14,1,14,4]]}
[]
[]
[null,"التنظيم"]
[]
[null,"المستوى المُقَيَّم المحسوب:",null,null,null,{"$f":"AVERAGE(R22:R34)","v":1}]
[]
[]
[]
[]
[]
[]
[]
[]
[null,"المراجع:"]
[null,"IATG-01.35 القدرات التنظيمية"]
[]
[]
[]
[]
[]
[]
[null,null,null,null,null,null,null,null,null,null,null,null,null,null,null,null,null,1]
[]
[]
[]
[]
[]
[]
[]
[]
[]
[]
[]
[null,null,null,null,null,null,null,null,null,null,null,null,null,null,null,null,null,1]

{"sheet":"السلامة","index":5,"n_rows":102,"n_cols":18,"rows_kept":102,"cut":false,"hidden":false,"merged":[[16,8,16,14],[17,8,17,14],[18,8,18,13],[19,8,19,13],[15,8,15,14],[20,1,20,3],[15,1,15,4],[16,1,16,6],[17,1,17,7],[19,1,19,5],[18,1,18,5]]}
[]
[]
[null,"السلامة"]
[]
[null,"المستوى المُقَيَّم المحسوب:",null,null,null,{"$f":"AVERAGE(R28:R102)","v":1}]
[]
[]
[]
[]
[]
[]
[]
[]
[]
[null,"المراجع:"]
[null,"IATG-01.30 المشورة بشأن تطوير السياسات",null,null,null,null,null,null,"IATG-11.10 حوادث الذخيرة: الإبلاغ والتحقيق"]
[null,"IATG-01.50 نظام الأمم المتحدة لتصنيف أخطار المتفجّرات",null,null,null,null,null,null,"MOSAIC-03.40 الآليات الوطنية للتنسيق بشأن ضبط الأسلحة الصغيرة والأسلحة الخفيفة"]
[null,"IATG-02.10 مقدّمة إلى مبادئ وعمليات إدارة المخاطر",null,null,null,null,null,null,"MOSAIC-04.40 الرصد والتقييم وإعداد التقارير"]
[null,"IATG-02.20 كميات ومسافات الفصل",null,null,null,null,null,null,"MOSAIC-05.40 جمع الأسلحة الصغيرة والأسلحة الخفيفة غير المشروعة وغير المرغوب فيها"]
[null,"IATG-02.30 ترخيص مرافق المتفجّرات",null,null,null,null,null,null,"MOSAIC-05.50 التدمير: الأسلحة"]
[null,"IATG-02.50 السلامة من الحرائق"]
[]
[]
[]
[]
[]
[]
[null,null,null,null,null,null,null,null,null,null,null,null,null,null,null,null,null,1]
[]
[]
[null,null,null,null,null,null,null,null,null,null,null,null,null,null,null,null,null," "]
[]
[]
[]
[]
[]
[]
[]
[]
[]
[]
[]
[null,null,null,null,null,null,null,null,null,null,null,null,null,null,null,null,null,1]
[]
[]
[]
[]
[null,null,null,null,null,null,null,null,null,null,null,null,null,null,null,null,null,1]
[]
[]
[]
[]
[null,null,null,null,null,null,null,null,null,null,null,null,null,null,null,null,null,1]
[]
[]
[]
[]
[]
[]
[]
[]
[]
[]
[]
[null,null,null,null,null,null,null,null,null,null,null,null,null,null,null,null,null,1]
[]
[]
[]
[]
[]
[]
[]
[null,null,null,null,null,null,null,null,null,null,null,null,null,null,null,null,null,1]
[]
[]
[]
[]
[]
[]
[]
[]
[]
[null,null,null,null,null,null,null,null,null,null,null,null,null,null,null,null,null,1]
[]
[]
[]
[]
[]
[]
[]
[]
[]
[]
[]
[]
[]
[]
[]
[]
[]
[]
[null,null,null,null,null,null,null,null,null,null,null,null,null,null,null,null,null,1]

{"sheet":"الأمن","index":6,"n_rows":113,"n_cols":18,"rows_kept":113,"cut":false,"hidden":false,"merged":[[15,8,15,12],[14,1,14,4],[15,1,15,5],[14,8,14,12],[16,1,16,5]]}
[]
[]
[null,"الأمن"]
[]
[null,"المستوى المُقَيَّم المحسوب:",null,null,null,{"$f":"AVERAGE(R26:R113)","v":1}]
[]
[]
[]
[]
[]
[]
[]
[]
[null,"المراجع:"]
[null,"IATG-03.10 إدارة المخزون",null,null,null,null,null,null,"MOSAIC-05.20 إدارة المخزونات: الأسلحة"]
[null,"IATG-09.10 مبادئ وأنظمة الأمن",null,null,null,null,null,null,"MOSAIC-05.30 الوسم وحفظ السجلات"]
[null,"MOSAIC-05.10 إجراء مسوحات الأسلحة الصغيرة والأسلحة الخفيفة"]
[]
[]
[]
[]
[]
[]
[]
[]
[null,null,null,null,null,null,null,null,null,null,null,null,null,null,null,null,null,1]
[]
[]
[]
[]
[]
[]
[]
[]
[]
[]
[]
[]
[]
[]
[]
[]
[]
[]
[null,null,null,null,null,null,null,null,null,null,null,null,null,null,null,null,null,1]
[]
[]
[]
[]
[]
[]
[]
[]
[]
[]
[]
[]
[null,null,null,null,null,null,null,null,null,null,null,null,null,null,null,null,null,1]
[]
[]
[]
[]
[]
[]
[]
[]
[null,null,null,null,null,null,null,null,null,null,null,null,null,null,null,null,null,1]
[]
[]
[]
[]
[]
[]
[]
[]
[]
[]
[]
[null,null,null,null,null,null,null,null,null,null,null,null,null,null,null,null,null,1]
[]
[]
[]
[]
[]
[]
[]
[]
[]
[]
[]
[]
[]
[]
[]
[]
[]
[null,null,null,null,null,null,null,null,null,null,null,null,null,null,null,null,null,1]
[]
[]
[]
[]
[]
[]
[]
[]
[null,null,null,null,null,null,null,null,null,null,null,null,null,null,null,null,null,1]
[]
[]
[]
[]
[]
[]
[null,null,null,null,null,null,null,null,null,null,null,null,null,null,null,null,null,1]

{"sheet":"الموظفون","index":7,"n_rows":35,"n_cols":18,"rows_kept":35,"cut":false,"hidden":false,"merged":[[14,1,14,4]]}
[]
[]
[null,"الموظّفون"]
[]
[null,"المستوى المُقَيَّم المحسوب:",null,null,null,{"$f":"AVERAGE(R22:R35)","v":1}]
[]
[]
[]
[]
[]
[]
[]
[]
[null,"المراجع:"]
[null,"IATG-01.90 كفاءات الأفراد"]
[]
[]
[]
[]
[]
[]
[null,null,null,null,null,null,null,null,null,null,null,null,null,null,null,null,null,1]
[]
[]
[]
[]
[]
[]
[]
[]
[]
[]
[]
[]
[null,null,null,null,null,null,null,null,null,null,null,null,null,null,null,null,null,1]

{"sheet":"التدريب","index":8,"n_rows":37,"n_cols":18,"rows_kept":37,"cut":false,"hidden":false,"merged":[[15,1,15,4],[14,1,14,4]]}
[]
[]
[null,"التدريب"]
[]
[null,"المستوى المُقَيَّم المحسوب:",null,null,null,{"$f":"AVERAGE(R24:R37)","v":1}]
[]
[]
[]
[]
[]
[]
[]
[]
[null,"المراجع"]
[null,"IATG-01.35 القدرات التنظيمية"]
[null,"IATG-01.90 كفاءات الأفراد"]
[]
[]
[]
[]
[]
[]
[]
[null,null,null,null,null,null,null,null,null,null,null,null,null,null,null,null,null,1]
[]
[]
[]
[]
[]
[]
[]
[]
[]
[]
[]
[]
[null,null,null,null,null,null,null,null,null,null,null,null,null,null,null,null,null,1]

{"sheet":"البنية التحتية","index":9,"n_rows":75,"n_cols":18,"rows_kept":75,"cut":false,"hidden":false,"merged":[[16,1,16,4],[17,8,17,12],[16,8,16,12],[18,1,18,4],[17,1,17,5]]}
[]
[]
[null,"البنية التحتية"]
[]
[null,"المستوى المُقَيَّم المحسوب:",null,null,null,{"$f":"AVERAGE(R27:R75)","v":1}]
[]
[]
[]
[]
[]
[]
[]
[]
[]
[]
[null,"المراجع:"]
[null,"IATG-05.20 المباني ومنشآت المتفجّرات",null,null,null,null,null,null,"IATG-07.30 عمليات معالجة الذخيرة"]
[null,"IATG-05.40 معايير السلامة للتركيبات الكهربائية",null,null,null,null,null,null,"MOSAIC-05.20 إدارة المخزونات: الأسلحة"]
[null,"IATG-07.20 تفتيش الذخيرة"]
[]
[]
[]
[]
[]
[]
[]
[null,null,null,null,null,null,null,null,null,null,null,null,null,null,null,null,null,1]
[]
[]
[]
[]
[]
[]
[]
[]
[]
[]
[]
[]
[]
[]
[]
[]
[]
[null,null,null,null,null,null,null,null,null,null,null,null,null,null,null,null,null,1]
[]
[]
[]
[]
[]
[]
[]
[]
[null,null,null,null,null,null,null,null,null,null,null,null,null,null,null,null,null,1]
[]
[]
[]
[]
[]
[]
[]
[]
[]
[]
[null,null,null,null,null,null,null,null,null,null,null,null,null,null,null,null,null,1]
[]
[]
[]
[]
[]
[]
[]
[]
[]
[null,null,null,null,null,null,null,null,null,null,null,null,null,null,null,null,null,1]

{"sheet":"التمويل","index":10,"n_rows":35,"n_cols":18,"rows_kept":35,"cut":false,"hidden":false,"merged":[[14,1,14,4],[15,1,15,5]]}
[]
[]
[null,"التمويل"]
[]
[null,"المستوى المُقَيَّم المحسوب:",null,null,null,{"$f":"AVERAGE(R24:R35)","v":1}]
[]
[]
[]
[]
[]
[]
[]
[]
[null,"المراجع:"]
[null,"IATG-03.10 إدارة المخزون"]
[null,"MOSAIC-05.20 إدارة المخزونات: الأسلحة"]
[]
[]
[]
[]
[]
[]
[]
[null,null,null,null,null,null,null,null,null,null,null,null,null,null,null,null,null,1]
[]
[]
[]
[]
[]
[]
[]
[]
[]
[]
[null,null,null,null,null,null,null,null,null,null,null,null,null,null,null,null,null,1]

{"sheet":"اقتناء المعدّات","index":11,"n_rows":74,"n_cols":18,"rows_kept":74,"cut":false,"hidden":false,"merged":[[19,1,19,4]]}
[]
[]
[null,"اقتناء المعدّات"]
[]
[null,"المستوى المُقَيَّم المحسوب:",null,null,null,{"$f":"AVERAGE(R28:R74)","v":1}]
[]
[]
[]
[]
[]
[]
[]
[]
[]
[]
[]
[]
[]
[]
[null,"IATG-01.35 القدرات التنظيمية"]
[]
[]
[]
[]
[]
[]
[]
[null,null,null,null,null,null,null,null,null,null,null,null,null,null,null,null,null,1]
[]
[]
[]
[]
[]
[]
[]
[]
[]
[]
[]
[]
[]
[]
[]
[]
[]
[null,null,null,null,null,null,null,null,null,null,null,null,null,null,null,null,null,1]
[]
[]
[]
[]
[]
[]
[]
[]
[]
[]
[]
[null,null,null,null,null,null," "]
[]
[]
[]
[]
[null,null,null,null,null,null,null,null,null,null,null,null,null,null,null,null,null,1]
[]
[]
[]
[]
[]
[]
[]
[]
[]
[]
[null,null,null,null,null,null,null,null,null,null,null,null,null,null,null,null,null,1]

{"sheet":"الطباعة إلى ملف PDF","index":12,"n_rows":54,"n_cols":17,"rows_kept":54,"cut":false,"hidden":false,"merged":[]}
[]
[]
[]
[null,"1. اتّبع التعليمات البسيطة أدناه لطباعة المستند المكتمل بصيغة PDF:"]
[null,"·        في الشريط العلوي، حدّد تخطيط الصفحة"]
[null,"·        في لوحة التوجيه، اضغط على السهم الصغير المتجه للأسفل"]
[null,"·         في القائمة المنسدلة، حدّد الاتجاه العمودي"]
[null,"·        ابقَ في تخطيط الصفحة، ثم اضغط على السهم الصغير المتجه للأسفل في لوحة الهوامش."]
[null,"·      في القائمة المنسدلة، حدّد هوامش مخصّصة"]
[null,"·  ضع علامة في المربّعات الأفقية والعمودية"]
[null,"·         اضغط على موافق"]
[null,"·       ارجع إلى الشريط العلوي واضغط على \"ملف\""]
[null,"·        اختبر \"طباعة\""]
[null,"·         افتح لوحة الطابعة وحدّد الطباعة إلى PDF في مايكروسوفت"]
[null,"·        ثم انتقل إلى لوحة الإعدادات في صفحة الطباعة واضغط على السهم الصغير"]
[null,"·         من القائمة المنسدلة، حدّد \"طباعة المصنف بالكامل\"."]
[null,"·         ثم انتقل إلى اللوحة السفلية في صفحة الطباعة واضغط على السهم الصغير"]
[null,"·         من القائمة المنسدلة، حدّد \"عرض جميع الأعمدة في صفحة واحدة\""]
[null,"·         أخيرًا، اضغط على \"طباعة\""]
[null,"للمزيد من المساعدة بشأن الطباعة، انظر إلى الدليل التخطيطي أدناه:"]
[]
[null,"2. Follow the simple instructions below to save the completed document in PDF format:"]
[null,"·         In the top ribbon press File",null,null,null,null,null,null,null,null,null,null,null,null,null,null,{"$error":"#VALUE!"}]
[null,"·         Select Export"]
[null,"·         Double-click on Create PDF/XPS Document"]
[null,"·         Select the folder into which the document is to be saved"]
[null,"·         Click on the Options window"]
[null,"·         Press the button ‘Entire Workbook’ and uncheck the one with ‘Ignore print areas’"]
[null,"·         Press OK"]
[null,"·         Press Publish in order to save the document in PDF format"]
[]
[]
[]
[]
[]
[]
[]
[]
[]
[]
[]
[]
[]
[]
[]
[]
[]
[]
[]
[]
[]
[]
[]
[null,null,null,null,null,null," "]